[Event "Titled Tuesday Blitz March 22 Late 2022"]
[White "Brahami, Lamine"]
[Black "Rangel, Daniel"]
[WhiteFideId "7905637"]
[BlackFideId "2124475"]
[WhiteElo "1909"]
[BlackElo "2225"]
[Result "0-1"]
[Round "04"]
[TimeControl "180+1"]
[Date "2022.03.22"]
[WhiteClock "0:02:00"]
[BlackClock "0:02:12"]

1. d4 {[%clk 0:03:00]}  Nf6 {[%clk 0:02:33]} 2. c4 {[%clk 0:02:54]}  g6 {[%clk 0:02:34]} 3. Nc3 {[%clk 0:02:53]}  Bg7 {[%clk 0:02:34]} 4. e4 {[%clk 0:02:53]}  O-O {[%clk 0:02:34]} 5. Be2 {[%clk 0:02:53]}  d6 {[%clk 0:02:35]} 6. Be3 {[%clk 0:02:52]}  Nc6 {[%clk 0:02:34]} 7. d5 {[%clk 0:02:41]}  Ne5 {[%clk 0:02:32]} 8. h3 {[%clk 0:02:32]}  c6 {[%clk 0:02:31]} 9. f4 {[%clk 0:02:30]}  Ned7 {[%clk 0:02:30]} 10. Nf3 {[%clk 0:02:31]}  a6 {[%clk 0:02:28]} 11. O-O {[%clk 0:02:29]}  cxd5 {[%clk 0:02:24]} 12. cxd5 {[%clk 0:02:30]}  b5 {[%clk 0:02:23]} 13. b4 {[%clk 0:02:22]}  Bb7 {[%clk 0:02:23]} 14. Nd4 {[%clk 0:02:21]}  Rc8 {[%clk 0:02:19]} 15. Rc1 {[%clk 0:02:20]}  Nb6 {[%clk 0:02:17]} 16. Kh1 {[%clk 0:02:05]}  Nc4 {[%clk 0:02:13]} 17. a4 {[%clk 0:02:00]}  Nxe3 {[%clk 0:02:12]} 0-1


[Site "https://www.chess.com"]

[Event "Titled Tuesday Blitz March 22 Late 2022"]
[White "Burke, Paul"]
[Black "Vusatiuk, Vladimir"]
[WhiteFideId "2605767"]
[BlackFideId "14118610"]
[WhiteElo "1915"]
[BlackElo "2157"]
[Result "0-1"]
[Round "04"]
[TimeControl "180+1"]
[Date "2022.03.22"]
[WhiteClock "0:00:24"]
[BlackClock "0:00:08"]

1. e4 {[%clk 0:03:00]}  Nc6 {[%clk 0:02:46]} 2. Nf3 {[%clk 0:02:59]}  f5 {[%clk 0:02:45]} 3. exf5 {[%clk 0:02:58]}  d5 {[%clk 0:02:44]} 4. d4 {[%clk 0:02:58]}  Bxf5 {[%clk 0:02:44]} 5. c4 {[%clk 0:02:57]}  e6 {[%clk 0:02:31]} 6. Nc3 {[%clk 0:02:56]}  Nf6 {[%clk 0:02:30]} 7. Be2 {[%clk 0:02:51]}  Be7 {[%clk 0:02:19]} 8. O-O {[%clk 0:02:51]}  O-O {[%clk 0:02:19]} 9. h3 {[%clk 0:02:50]}  Ne4 {[%clk 0:02:17]} 10. Be3 {[%clk 0:02:43]}  Qe8 {[%clk 0:01:48]} 11. cxd5 {[%clk 0:02:39]}  Nxc3 {[%clk 0:01:48]} 12. bxc3 {[%clk 0:02:38]}  exd5 {[%clk 0:01:48]} 13. Ne5 {[%clk 0:02:36]}  Nxe5 {[%clk 0:01:26]} 14. dxe5 {[%clk 0:02:35]}  Rd8 {[%clk 0:01:23]} 15. Bg4 {[%clk 0:02:31]}  Qg6 {[%clk 0:01:17]} 16. Bxf5 {[%clk 0:02:28]}  Qxf5 {[%clk 0:01:16]} 17. f4 {[%clk 0:02:27]}  c5 {[%clk 0:01:15]} 18. Qg4 {[%clk 0:02:22]}  g6 {[%clk 0:00:45]} 19. Qxf5 {[%clk 0:02:20]}  gxf5 {[%clk 0:00:40]} 20. Rad1 {[%clk 0:02:17]}  Kf7 {[%clk 0:00:38]} 21. Kh2 {[%clk 0:02:15]}  Ke6 {[%clk 0:00:39]} 22. g4 {[%clk 0:02:13]}  b5 {[%clk 0:00:34]} 23. gxf5+ {[%clk 0:02:09]}  Rxf5 {[%clk 0:00:32]} 24. Rg1 {[%clk 0:02:09]}  b4 {[%clk 0:00:19]} 25. cxb4 {[%clk 0:02:06]}  d4 {[%clk 0:00:19]} 26. Bf2 {[%clk 0:01:36]}  Rxf4 {[%clk 0:00:19]} 27. Bg3 {[%clk 0:01:36]}  Re4 {[%clk 0:00:19]} 28. bxc5 {[%clk 0:01:34]}  Bxc5 {[%clk 0:00:20]} 29. Rge1 {[%clk 0:01:30]}  Rxe1 {[%clk 0:00:19]} 30. Rxe1 {[%clk 0:01:16]}  d3 {[%clk 0:00:19]} 31. Rd1 {[%clk 0:01:16]}  Bb4 {[%clk 0:00:10]} 32. Kg2 {[%clk 0:01:15]}  d2 {[%clk 0:00:05]} 33. Kf3 {[%clk 0:01:15]}  Kd5 {[%clk 0:00:05]} 34. Bf4 {[%clk 0:01:11]}  Kc4 {[%clk 0:00:05]} 35. Ke2 {[%clk 0:01:09]}  Rd4 {[%clk 0:00:03]} 36. Bg3 {[%clk 0:00:56]}  Kc3 {[%clk 0:00:02]} 37. Ke3 {[%clk 0:00:43]}  Kc2 {[%clk 0:00:02]} 38. Kxd4 {[%clk 0:00:41]}  Kxd1 {[%clk 0:00:03]} 39. Bf4 {[%clk 0:00:41]}  Ke2 {[%clk 0:00:03]} 40. Bxd2 {[%clk 0:00:40]}  Kxd2 {[%clk 0:00:04]} 41. e6 {[%clk 0:00:37]}  Kc2 {[%clk 0:00:04]} 42. Kc4 {[%clk 0:00:36]}  Be7 {[%clk 0:00:04]} 43. a4 {[%clk 0:00:34]}  h5 {[%clk 0:00:03]} 44. Kb5 {[%clk 0:00:32]}  Kb3 {[%clk 0:00:03]} 45. a5 {[%clk 0:00:32]}  h4 {[%clk 0:00:04]} 46. a6 {[%clk 0:00:27]}  Bf6 {[%clk 0:00:02]} 47. Kc6 {[%clk 0:00:26]}  Kc4 {[%clk 0:00:03]} 48. Kb7 {[%clk 0:00:26]}  Kd5 {[%clk 0:00:02]} 49. Kxa7 {[%clk 0:00:24]}  Kxe6 {[%clk 0:00:03]} 50. Kb7 {[%clk 0:00:24]}  Bd4 {[%clk 0:00:03]} 51. a7 {[%clk 0:00:23]}  Bxa7 {[%clk 0:00:04]} 52. Kxa7 {[%clk 0:00:24]}  Kf5 {[%clk 0:00:05]} 53. Kb6 {[%clk 0:00:24]}  Kf4 {[%clk 0:00:06]} 54. Kc5 {[%clk 0:00:24]}  Kg3 {[%clk 0:00:06]} 55. Kd4 {[%clk 0:00:24]}  Kxh3 {[%clk 0:00:07]} 56. Ke3 {[%clk 0:00:24]}  Kg2 {[%clk 0:00:08]} 0-1


[Site "https://www.chess.com"]

[Event "Titled Tuesday Blitz March 22 Late 2022"]
[White "Cramling Bellon, Anna"]
[Black "Atanejhad, Sahebali"]
[WhiteFideId "32009232"]
[BlackFideId "12506664"]
[WhiteElo "1905"]
[BlackElo "1977"]
[Result "0-1"]
[Round "04"]
[TimeControl "180+1"]
[Date "2022.03.22"]
[WhiteClock "0:00:05"]
[BlackClock "0:00:09"]

1. d4 {[%clk 0:03:00]}  Nf6 {[%clk 0:02:59]} 2. c4 {[%clk 0:02:57]}  e6 {[%clk 0:02:59]} 3. Nc3 {[%clk 0:02:57]}  Bb4 {[%clk 0:02:54]} 4. Qc2 {[%clk 0:02:55]}  c5 {[%clk 0:02:52]} 5. dxc5 {[%clk 0:02:54]}  Na6 {[%clk 0:02:50]} 6. Nf3 {[%clk 0:02:50]}  Nxc5 {[%clk 0:02:49]} 7. Bg5 {[%clk 0:02:45]}  Nce4 {[%clk 0:02:35]} 8. Bh4 {[%clk 0:02:39]}  Qa5 {[%clk 0:02:29]} 9. Rc1 {[%clk 0:02:32]}  d5 {[%clk 0:02:15]} 10. e3 {[%clk 0:02:29]}  Qxa2 {[%clk 0:01:48]} 11. cxd5 {[%clk 0:02:12]}  Bxc3+ {[%clk 0:01:36]} 12. bxc3 {[%clk 0:02:02]}  Qxc2 {[%clk 0:01:36]} 13. Bb5+ {[%clk 0:01:45]}  Kf8 {[%clk 0:00:58]} 14. Rxc2 {[%clk 0:01:42]}  Nxd5 {[%clk 0:00:57]} 15. c4 {[%clk 0:01:35]}  Nb4 {[%clk 0:00:56]} 16. Rd2 {[%clk 0:01:34]}  Nxd2 {[%clk 0:00:54]} 17. Nxd2 {[%clk 0:01:04]}  a6 {[%clk 0:00:51]} 18. Ba4 {[%clk 0:01:01]}  Nd3+ {[%clk 0:00:51]} 19. Ke2 {[%clk 0:00:58]}  Nc5 {[%clk 0:00:51]} 20. Bc2 {[%clk 0:00:51]}  Bd7 {[%clk 0:00:49]} 21. Rd1 {[%clk 0:00:51]}  Bc6 {[%clk 0:00:46]} 22. Nf3 {[%clk 0:00:47]}  f6 {[%clk 0:00:43]} 23. Bg3 {[%clk 0:00:46]}  Kf7 {[%clk 0:00:41]} 24. Bd6 {[%clk 0:00:45]}  Ne4 {[%clk 0:00:41]} 25. Bb4 {[%clk 0:00:38]}  Rhd8 {[%clk 0:00:33]} 26. Nd4 {[%clk 0:00:38]}  a5 {[%clk 0:00:31]} 27. Be1 {[%clk 0:00:36]}  Nc5 {[%clk 0:00:23]} 28. f3 {[%clk 0:00:20]}  g6 {[%clk 0:00:23]} 29. e4 {[%clk 0:00:19]}  e5 {[%clk 0:00:22]} 30. Nxc6 {[%clk 0:00:18]}  bxc6 {[%clk 0:00:22]} 31. Rxd8 {[%clk 0:00:17]}  Rxd8 {[%clk 0:00:22]} 32. Bxa5 {[%clk 0:00:18]}  Ra8 {[%clk 0:00:22]} 33. Bb4 {[%clk 0:00:14]}  Ra2 {[%clk 0:00:21]} 34. Kd2 {[%clk 0:00:14]}  Ne6 {[%clk 0:00:18]} 35. Bc3 {[%clk 0:00:12]}  Nd4 {[%clk 0:00:17]} 36. Bxd4 {[%clk 0:00:11]}  exd4 {[%clk 0:00:17]} 37. Kd3 {[%clk 0:00:12]}  c5 {[%clk 0:00:17]} 38. g3 {[%clk 0:00:06]}  Ke7 {[%clk 0:00:17]} 39. f4 {[%clk 0:00:05]}  Kd6 {[%clk 0:00:16]} 40. Bb3 {[%clk 0:00:03]}  Ra1 {[%clk 0:00:15]} 41. Kc2 {[%clk 0:00:02]}  Rh1 {[%clk 0:00:16]} 42. h4 {[%clk 0:00:02]}  Rg1 {[%clk 0:00:16]} 43. Kb2 {[%clk 0:00:02]}  Rxg3 {[%clk 0:00:16]} 44. Bc2 {[%clk 0:00:02]}  Rg4 {[%clk 0:00:16]} 45. h5 {[%clk 0:00:02]}  gxh5 {[%clk 0:00:15]} 46. e5+ {[%clk 0:00:03]}  fxe5 {[%clk 0:00:15]} 47. fxe5+ {[%clk 0:00:04]}  Kxe5 {[%clk 0:00:15]} 48. Bf5 {[%clk 0:00:05]}  Rg2+ {[%clk 0:00:04]} 49. Kc1 {[%clk 0:00:04]}  h4 {[%clk 0:00:04]} 50. Bh3 {[%clk 0:00:03]}  Rg3 {[%clk 0:00:05]} 51. Bf1 {[%clk 0:00:03]}  Kf4 {[%clk 0:00:06]} 52. Kd2 {[%clk 0:00:03]}  Kf3 {[%clk 0:00:05]} 53. Be2+ {[%clk 0:00:03]}  Kf2 {[%clk 0:00:06]} 54. Bd3 {[%clk 0:00:02]}  h3 {[%clk 0:00:06]} 55. Be4 {[%clk 0:00:02]}  h2 {[%clk 0:00:07]} 56. Bd5 {[%clk 0:00:02]}  Rf3 {[%clk 0:00:07]} 57. Bxf3 {[%clk 0:00:02]}  Kxf3 {[%clk 0:00:07]} 58. Kd3 {[%clk 0:00:03]}  h1=Q {[%clk 0:00:08]} 59. Kc2 {[%clk 0:00:03]}  Qg2+ {[%clk 0:00:08]} 60. Kb3 {[%clk 0:00:04]}  Qf1 {[%clk 0:00:08]} 61. Ka4 {[%clk 0:00:04]}  Qxc4+ {[%clk 0:00:08]} 62. Ka5 {[%clk 0:00:03]}  Qb4+ {[%clk 0:00:08]} 63. Ka6 {[%clk 0:00:04]}  d3 {[%clk 0:00:09]} 64. Ka7 {[%clk 0:00:05]}  d2 {[%clk 0:00:09]} 0-1


[Site "https://www.chess.com"]

[Event "Titled Tuesday Blitz March 22 Late 2022"]
[White "Degtiarev, Evgeny"]
[Black "Przybylski, Wojciech"]
[WhiteFideId "4149610"]
[BlackFideId "1117599"]
[WhiteElo "2218"]
[BlackElo "2133"]
[Result "0-1"]
[Round "04"]
[TimeControl "180+1"]
[Date "2022.03.22"]
[WhiteClock "0:00:05"]
[BlackClock "0:00:33"]

1. d4 {[%clk 0:03:00]}  Nf6 {[%clk 0:02:56]} 2. c4 {[%clk 0:03:01]}  e6 {[%clk 0:02:55]} 3. g3 {[%clk 0:03:00]}  d5 {[%clk 0:02:53]} 4. Nf3 {[%clk 0:02:58]}  Bb4+ {[%clk 0:02:52]} 5. Bd2 {[%clk 0:02:55]}  Be7 {[%clk 0:02:45]} 6. Bg2 {[%clk 0:02:49]}  O-O {[%clk 0:02:39]} 7. O-O {[%clk 0:02:49]}  c6 {[%clk 0:02:37]} 8. Qc2 {[%clk 0:02:35]}  Nbd7 {[%clk 0:02:35]} 9. a4 {[%clk 0:02:30]}  a5 {[%clk 0:02:27]} 10. Rc1 {[%clk 0:02:25]}  Ne4 {[%clk 0:02:24]} 11. Be3 {[%clk 0:01:45]}  f5 {[%clk 0:02:21]} 12. Nbd2 {[%clk 0:01:33]}  Bf6 {[%clk 0:02:12]} 13. Nxe4 {[%clk 0:01:27]}  fxe4 {[%clk 0:02:11]} 14. Nd2 {[%clk 0:01:20]}  Bg5 {[%clk 0:02:02]} 15. Nf1 {[%clk 0:01:02]}  Bf6 {[%clk 0:01:59]} 16. f4 {[%clk 0:01:00]}  Re8 {[%clk 0:01:57]} 17. g4 {[%clk 0:00:52]}  Nf8 {[%clk 0:01:48]} 18. g5 {[%clk 0:00:51]}  Be7 {[%clk 0:01:48]} 19. c5 {[%clk 0:00:52]}  Ng6 {[%clk 0:01:44]} 20. Ng3 {[%clk 0:00:50]}  Nh4 {[%clk 0:01:43]} 21. Rf1 {[%clk 0:00:49]}  g6 {[%clk 0:01:42]} 22. Bd2 {[%clk 0:00:43]}  Bf8 {[%clk 0:01:40]} 23. Ra3 {[%clk 0:00:35]}  Bg7 {[%clk 0:01:38]} 24. e3 {[%clk 0:00:36]}  b6 {[%clk 0:01:32]} 25. cxb6 {[%clk 0:00:27]}  Qxb6 {[%clk 0:01:32]} 26. Rb3 {[%clk 0:00:25]}  Qa6 {[%clk 0:01:30]} 27. Rc3 {[%clk 0:00:22]}  Bd7 {[%clk 0:01:28]} 28. Rc5 {[%clk 0:00:21]}  Qb6 {[%clk 0:01:26]} 29. Qc3 {[%clk 0:00:20]}  Bf8 {[%clk 0:01:21]} 30. Rxa5 {[%clk 0:00:17]}  Rxa5 {[%clk 0:01:20]} 31. Qxa5 {[%clk 0:00:18]}  Qxb2 {[%clk 0:01:19]} 32. Qc7 {[%clk 0:00:17]}  Qxd2 {[%clk 0:01:15]} 33. Rf2 {[%clk 0:00:17]}  Qe1+ {[%clk 0:00:52]} 34. Nf1 {[%clk 0:00:15]}  Re7 {[%clk 0:00:44]} 35. a5 {[%clk 0:00:12]}  Nxg2 {[%clk 0:00:43]} 36. Kxg2 {[%clk 0:00:12]}  e5 {[%clk 0:00:39]} 37. Qb6 {[%clk 0:00:08]}  Bh3+ {[%clk 0:00:37]} 38. Kg1 {[%clk 0:00:07]}  Bxf1 {[%clk 0:00:36]} 39. Rxf1 {[%clk 0:00:06]}  Qxe3+ {[%clk 0:00:36]} 40. Kg2 {[%clk 0:00:06]}  Qe2+ {[%clk 0:00:34]} 41. Rf2 {[%clk 0:00:06]}  Qg4+ {[%clk 0:00:34]} 42. Kf1 {[%clk 0:00:06]}  e3 {[%clk 0:00:33]} 43. Rg2 {[%clk 0:00:05]}  Qd1# {[%clk 0:00:33]} 0-1


[Site "https://www.chess.com"]

[Event "Titled Tuesday Blitz March 22 Late 2022"]
[White "Demchenko, Anton"]
[Black "Taboas Rodriguez, Daniel"]
[WhiteFideId "4160258"]
[BlackFideId "2208466"]
[WhiteElo "2539"]
[BlackElo "2429"]
[Result "0-1"]
[Round "04"]
[TimeControl "180+1"]
[Date "2022.03.22"]
[WhiteClock "0:00:01"]
[BlackClock "0:00:45"]

1. e4 {[%clk 0:03:00]}  e6 {[%clk 0:02:59]} 2. d4 {[%clk 0:03:00]}  d5 {[%clk 0:03:00]} 3. Nd2 {[%clk 0:03:00]}  Nc6 {[%clk 0:03:00]} 4. Ngf3 {[%clk 0:02:59]}  Nf6 {[%clk 0:03:00]} 5. e5 {[%clk 0:03:00]}  Ne4 {[%clk 0:03:00]} 6. Nb3 {[%clk 0:03:01]}  f6 {[%clk 0:02:58]} 7. Bb5 {[%clk 0:02:46]}  Bd7 {[%clk 0:02:59]} 8. Bxc6 {[%clk 0:02:40]}  Bxc6 {[%clk 0:02:58]} 9. O-O {[%clk 0:02:41]}  Qd7 {[%clk 0:02:56]} 10. Re1 {[%clk 0:02:24]}  Be7 {[%clk 0:02:55]} 11. c3 {[%clk 0:02:00]}  O-O {[%clk 0:02:52]} 12. h3 {[%clk 0:01:59]}  Bb5 {[%clk 0:02:44]} 13. Nbd2 {[%clk 0:01:54]}  Bd3 {[%clk 0:02:37]} 14. Nf1 {[%clk 0:01:52]}  Bxf1 {[%clk 0:02:33]} 15. Rxf1 {[%clk 0:01:52]}  f5 {[%clk 0:02:30]} 16. Ne1 {[%clk 0:01:45]}  c5 {[%clk 0:02:28]} 17. Bf4 {[%clk 0:01:39]}  Rac8 {[%clk 0:02:25]} 18. f3 {[%clk 0:01:38]}  Ng5 {[%clk 0:02:23]} 19. Qd2 {[%clk 0:01:33]}  Nf7 {[%clk 0:02:22]} 20. Be3 {[%clk 0:01:33]}  Rc6 {[%clk 0:02:20]} 21. Nd3 {[%clk 0:01:29]}  b6 {[%clk 0:02:17]} 22. f4 {[%clk 0:01:21]}  Rfc8 {[%clk 0:02:16]} 23. Kh1 {[%clk 0:01:14]}  Nh6 {[%clk 0:02:15]} 24. Rg1 {[%clk 0:01:14]}  cxd4 {[%clk 0:02:10]} 25. Bxd4 {[%clk 0:01:14]}  Bc5 {[%clk 0:02:11]} 26. Nxc5 {[%clk 0:00:37]}  bxc5 {[%clk 0:02:12]} 27. Bf2 {[%clk 0:00:38]}  Qf7 {[%clk 0:02:05]} 28. Qe2 {[%clk 0:00:36]}  d4 {[%clk 0:01:58]} 29. Rac1 {[%clk 0:00:31]}  dxc3 {[%clk 0:01:48]} 30. Rxc3 {[%clk 0:00:32]}  c4 {[%clk 0:01:48]} 31. Rd1 {[%clk 0:00:31]}  Qb7 {[%clk 0:01:40]} 32. Rd6 {[%clk 0:00:31]}  Nf7 {[%clk 0:01:36]} 33. Rd4 {[%clk 0:00:31]}  Qb4 {[%clk 0:01:32]} 34. a3 {[%clk 0:00:30]}  Qb5 {[%clk 0:01:31]} 35. b4 {[%clk 0:00:28]}  a5 {[%clk 0:01:28]} 36. bxa5 {[%clk 0:00:25]}  Qxa5 {[%clk 0:01:29]} 37. Rcxc4 {[%clk 0:00:22]}  Qxa3 {[%clk 0:01:12]} 38. Rxc6 {[%clk 0:00:21]}  Rxc6 {[%clk 0:01:13]} 39. Qb5 {[%clk 0:00:19]}  Qc1+ {[%clk 0:01:07]} 40. Kh2 {[%clk 0:00:18]}  h6 {[%clk 0:01:04]} 41. Bg3 {[%clk 0:00:11]}  g5 {[%clk 0:01:03]} 42. Qb7 {[%clk 0:00:08]}  Rc7 {[%clk 0:00:57]} 43. Qb8+ {[%clk 0:00:08]}  Rc8 {[%clk 0:00:57]} 44. Qa7 {[%clk 0:00:07]}  Qc7 {[%clk 0:00:57]} 45. Qa6 {[%clk 0:00:07]}  Qc6 {[%clk 0:00:57]} 46. Qd3 {[%clk 0:00:06]}  Kg7 {[%clk 0:00:56]} 47. Rd7 {[%clk 0:00:06]}  Rc7 {[%clk 0:00:56]} 48. Rd4 {[%clk 0:00:04]}  Rb7 {[%clk 0:00:53]} 49. Rc4 {[%clk 0:00:03]}  Qb5 {[%clk 0:00:51]} 50. Qc2 {[%clk 0:00:04]}  Rd7 {[%clk 0:00:49]} 51. Rc6 {[%clk 0:00:03]}  Qd5 {[%clk 0:00:48]} 52. Rc8 {[%clk 0:00:03]}  Ra7 {[%clk 0:00:46]} 53. Re8 {[%clk 0:00:02]}  Ra2 {[%clk 0:00:45]} 54. Qxa2 {[%clk 0:00:01]}  Qxa2 {[%clk 0:00:45]} 0-1


[Site "https://www.chess.com"]

[Event "Titled Tuesday Blitz March 22 Late 2022"]
[White "Djokic, Mihailo"]
[Black "Schuster, Karsten"]
[WhiteFideId "976440"]
[BlackFideId "4611071"]
[WhiteElo "2093"]
[BlackElo "2367"]
[Result "1-0"]
[Round "04"]
[TimeControl "180+1"]
[Date "2022.03.22"]
[WhiteClock "0:01:58"]
[BlackClock "0:01:07"]

1. e4 {[%clk 0:03:00]}  c6 {[%clk 0:02:59]} 2. d4 {[%clk 0:03:00]}  d5 {[%clk 0:03:00]} 3. e5 {[%clk 0:03:01]}  Bf5 {[%clk 0:03:00]} 4. h4 {[%clk 0:03:01]}  h5 {[%clk 0:03:00]} 5. Bg5 {[%clk 0:03:02]}  Qb6 {[%clk 0:02:58]} 6. Bd3 {[%clk 0:03:03]}  Bxd3 {[%clk 0:02:56]} 7. Qxd3 {[%clk 0:03:03]}  e6 {[%clk 0:02:56]} 8. Nd2 {[%clk 0:03:04]}  Nh6 {[%clk 0:02:55]} 9. c4 {[%clk 0:03:04]}  Nf5 {[%clk 0:02:55]} 10. Ngf3 {[%clk 0:03:04]}  Nd7 {[%clk 0:02:50]} 11. b3 {[%clk 0:03:03]}  Bb4 {[%clk 0:02:48]} 12. O-O {[%clk 0:03:02]}  Be7 {[%clk 0:02:35]} 13. Bxe7 {[%clk 0:03:01]}  Kxe7 {[%clk 0:02:35]} 14. Rfc1 {[%clk 0:02:57]}  a6 {[%clk 0:02:30]} 15. Rc2 {[%clk 0:02:56]}  Qd8 {[%clk 0:02:24]} 16. Rac1 {[%clk 0:02:56]}  Kf8 {[%clk 0:02:21]} 17. cxd5 {[%clk 0:02:56]}  cxd5 {[%clk 0:02:21]} 18. Rc7 {[%clk 0:02:56]}  Rb8 {[%clk 0:02:13]} 19. Ng5 {[%clk 0:02:52]}  Nxh4 {[%clk 0:02:05]} 20. Qg3 {[%clk 0:02:38]}  Nf5 {[%clk 0:02:01]} 21. Qf4 {[%clk 0:02:38]}  h4 {[%clk 0:01:53]} 22. Ndf3 {[%clk 0:02:36]}  Kg8 {[%clk 0:01:48]} 23. g4 {[%clk 0:02:17]}  hxg3 {[%clk 0:01:46]} 24. fxg3 {[%clk 0:02:17]}  Rh6 {[%clk 0:01:39]} 25. g4 {[%clk 0:02:14]}  f6 {[%clk 0:01:32]} 26. Nxe6 {[%clk 0:02:10]}  Qe8 {[%clk 0:01:21]} 27. gxf5 {[%clk 0:02:00]}  Qh5 {[%clk 0:01:10]} 28. Rxd7 {[%clk 0:01:59]}  Qh1+ {[%clk 0:01:09]} 29. Kf2 {[%clk 0:02:00]}  Qxc1 {[%clk 0:01:07]} 30. Rxg7+ {[%clk 0:01:58]} 1-0


[Site "https://www.chess.com"]

[Event "Titled Tuesday Blitz March 22 Late 2022"]
[White "Dobrov, Vladimir"]
[Black "Martinez Reyes, Pedro Ramon"]
[WhiteFideId "4136594"]
[BlackFideId "3901807"]
[WhiteElo "2614"]
[BlackElo "2410"]
[Result "1-0"]
[Round "04"]
[TimeControl "180+1"]
[Date "2022.03.22"]
[WhiteClock "0:01:14"]
[BlackClock "0:00:18"]

1. d4 {[%clk 0:03:00]}  d5 {[%clk 0:02:58]} 2. c4 {[%clk 0:03:01]}  Nf6 {[%clk 0:02:58]} 3. Nc3 {[%clk 0:03:01]}  c6 {[%clk 0:02:48]} 4. Nf3 {[%clk 0:03:00]}  g6 {[%clk 0:02:43]} 5. cxd5 {[%clk 0:02:58]}  cxd5 {[%clk 0:02:42]} 6. Bf4 {[%clk 0:02:57]}  Nc6 {[%clk 0:02:41]} 7. e3 {[%clk 0:02:58]}  Bg4 {[%clk 0:02:39]} 8. Qb3 {[%clk 0:02:52]}  Na5 {[%clk 0:02:38]} 9. Qa4+ {[%clk 0:02:50]}  Bd7 {[%clk 0:02:38]} 10. Bb5 {[%clk 0:02:50]}  Nc6 {[%clk 0:02:38]} 11. Ne5 {[%clk 0:02:47]}  Rc8 {[%clk 0:02:07]} 12. Bxc6 {[%clk 0:02:37]}  bxc6 {[%clk 0:02:03]} 13. O-O {[%clk 0:02:18]}  Nh5 {[%clk 0:01:30]} 14. Rac1 {[%clk 0:01:58]}  Nxf4 {[%clk 0:01:25]} 15. exf4 {[%clk 0:01:59]}  Bh6 {[%clk 0:01:25]} 16. Nxd5 {[%clk 0:01:50]}  O-O {[%clk 0:01:15]} 17. g3 {[%clk 0:01:33]}  Bh3 {[%clk 0:00:33]} 18. Nxc6 {[%clk 0:01:29]}  Rxc6 {[%clk 0:00:20]} 19. Qxc6 {[%clk 0:01:28]}  e6 {[%clk 0:00:20]} 20. Ne3 {[%clk 0:01:25]}  Bxf1 {[%clk 0:00:17]} 21. Kxf1 {[%clk 0:01:23]}  Qxd4 {[%clk 0:00:17]} 22. b3 {[%clk 0:01:22]}  Bg7 {[%clk 0:00:17]} 23. Kg2 {[%clk 0:01:21]}  Qb2 {[%clk 0:00:17]} 24. Rc2 {[%clk 0:01:21]}  Qa3 {[%clk 0:00:18]} 25. Qc5 {[%clk 0:01:19]}  Qa6 {[%clk 0:00:17]} 26. h4 {[%clk 0:01:15]}  Rd8 {[%clk 0:00:17]} 27. h5 {[%clk 0:01:15]}  gxh5 {[%clk 0:00:17]} 28. Qxh5 {[%clk 0:01:14]}  Qb7+ {[%clk 0:00:17]} 29. Qf3 {[%clk 0:01:14]}  Qe4 {[%clk 0:00:18]} 30. Qxe4 {[%clk 0:01:14]} 1-0


[Site "https://www.chess.com"]

[Event "Titled Tuesday Blitz March 22 Late 2022"]
[White "Donchenko, Alexander"]
[Black "Jeet, Jain"]
[WhiteFideId "24603295"]
[BlackFideId "5073022"]
[WhiteElo "2539"]
[BlackElo "2085"]
[Result "1-0"]
[Round "04"]
[TimeControl "180+1"]
[Date "2022.03.22"]
[WhiteClock "0:02:07"]
[BlackClock "0:00:20"]

1. d4 {[%clk 0:03:00]}  Nf6 {[%clk 0:02:55]} 2. c4 {[%clk 0:03:00]}  c5 {[%clk 0:02:54]} 3. d5 {[%clk 0:03:00]}  b5 {[%clk 0:02:54]} 4. cxb5 {[%clk 0:03:00]}  a6 {[%clk 0:02:54]} 5. bxa6 {[%clk 0:03:01]}  g6 {[%clk 0:02:53]} 6. Nc3 {[%clk 0:03:02]}  d6 {[%clk 0:02:54]} 7. e4 {[%clk 0:03:01]}  Bg7 {[%clk 0:02:54]} 8. Nf3 {[%clk 0:03:01]}  O-O {[%clk 0:02:54]} 9. a7 {[%clk 0:03:01]}  Rxa7 {[%clk 0:02:54]} 10. Be2 {[%clk 0:02:59]}  Ba6 {[%clk 0:02:54]} 11. O-O {[%clk 0:02:58]}  Nbd7 {[%clk 0:02:54]} 12. a4 {[%clk 0:02:57]}  Qa8 {[%clk 0:02:53]} 13. Nb5 {[%clk 0:02:54]}  Bxb5 {[%clk 0:02:50]} 14. Bxb5 {[%clk 0:02:55]}  Nxe4 {[%clk 0:02:48]} 15. Re1 {[%clk 0:02:55]}  f5 {[%clk 0:02:06]} 16. Ng5 {[%clk 0:02:40]}  Nxg5 {[%clk 0:02:04]} 17. Bxg5 {[%clk 0:02:41]}  Bxb2 {[%clk 0:01:27]} 18. Bxe7 {[%clk 0:02:39]}  Bxa1 {[%clk 0:01:26]} 19. Bxf8 {[%clk 0:02:39]}  Nxf8 {[%clk 0:01:25]} 20. Qxa1 {[%clk 0:02:39]}  Qxd5 {[%clk 0:01:22]} 21. Re8 {[%clk 0:02:28]}  Ra8 {[%clk 0:01:00]} 22. Bc4 {[%clk 0:02:23]}  Qxc4 {[%clk 0:00:42]} 23. Rxa8 {[%clk 0:02:23]}  Kf7 {[%clk 0:00:40]} 24. a5 {[%clk 0:02:20]}  Ne6 {[%clk 0:00:38]} 25. a6 {[%clk 0:02:19]}  Nf4 {[%clk 0:00:38]} 26. a7 {[%clk 0:02:15]}  Ne2+ {[%clk 0:00:28]} 27. Kh1 {[%clk 0:02:14]}  Nc1 {[%clk 0:00:28]} 28. Rf8+ {[%clk 0:02:12]}  Kxf8 {[%clk 0:00:21]} 29. Qf6+ {[%clk 0:02:11]}  Ke8 {[%clk 0:00:19]} 30. a8=Q+ {[%clk 0:02:10]}  Kd7 {[%clk 0:00:20]} 31. Qb7+ {[%clk 0:02:07]} 1-0


[Site "https://www.chess.com"]

[Event "Titled Tuesday Blitz March 22 Late 2022"]
[White "Fajdetic, Hrvoje"]
[Black "Reprintsev, Alexander"]
[WhiteFideId "14501945"]
[BlackFideId "14100541"]
[WhiteElo "2172"]
[BlackElo "2108"]
[Result "0-1"]
[Round "04"]
[TimeControl "180+1"]
[Date "2022.03.22"]
[WhiteClock "0:00:02"]
[BlackClock "0:01:19"]

1. d4 {[%clk 0:02:53]}  d5 {[%clk 0:02:59]} 2. Bf4 {[%clk 0:02:52]}  Nf6 {[%clk 0:02:57]} 3. e3 {[%clk 0:02:52]}  c5 {[%clk 0:02:56]} 4. Nc3 {[%clk 0:02:52]}  a6 {[%clk 0:02:56]} 5. Nce2 {[%clk 0:02:51]}  Nc6 {[%clk 0:02:54]} 6. c3 {[%clk 0:02:51]}  Nh5 {[%clk 0:02:46]} 7. Bg3 {[%clk 0:02:41]}  Nxg3 {[%clk 0:02:45]} 8. hxg3 {[%clk 0:02:40]}  e5 {[%clk 0:02:45]} 9. dxe5 {[%clk 0:02:37]}  Nxe5 {[%clk 0:02:44]} 10. Nf3 {[%clk 0:02:38]}  Nxf3+ {[%clk 0:02:37]} 11. gxf3 {[%clk 0:02:39]}  b6 {[%clk 0:02:30]} 12. Nf4 {[%clk 0:02:33]}  Bb7 {[%clk 0:02:30]} 13. Qc2 {[%clk 0:02:26]}  h6 {[%clk 0:02:18]} 14. O-O-O {[%clk 0:02:18]}  Qd6 {[%clk 0:02:08]} 15. Bc4 {[%clk 0:01:24]}  d4 {[%clk 0:01:52]} 16. exd4 {[%clk 0:01:18]}  Bxf3 {[%clk 0:01:51]} 17. Rhe1+ {[%clk 0:00:57]}  Be7 {[%clk 0:01:49]} 18. Qf5 {[%clk 0:00:37]}  O-O {[%clk 0:01:38]} 19. Bd3 {[%clk 0:00:37]}  g6 {[%clk 0:01:35]} 20. Nxg6 {[%clk 0:00:37]}  fxg6 {[%clk 0:01:34]} 21. Qe6+ {[%clk 0:00:21]}  Qxe6 {[%clk 0:01:33]} 22. Rxe6 {[%clk 0:00:22]}  Bxd1 {[%clk 0:01:31]} 23. Kxd1 {[%clk 0:00:16]}  Bf6 {[%clk 0:01:29]} 24. Bxg6 {[%clk 0:00:10]}  cxd4 {[%clk 0:01:28]} 25. c4 {[%clk 0:00:09]}  b5 {[%clk 0:01:28]} 26. c5 {[%clk 0:00:08]}  a5 {[%clk 0:01:25]} 27. c6 {[%clk 0:00:08]}  Bg7 {[%clk 0:01:20]} 28. f4 {[%clk 0:00:03]}  Rf6 {[%clk 0:01:19]} 29. Rxf6 {[%clk 0:00:03]}  Bxf6 {[%clk 0:01:19]} 30. Bf5 {[%clk 0:00:04]}  Bd8 {[%clk 0:01:19]} 31. Kd2 {[%clk 0:00:02]}  Bb6 {[%clk 0:01:19]} 0-1


[Site "https://www.chess.com"]